bitfinex-derivatives/quotes_BTCF0:USTF0_20241208
["timestamp","ask_amount","ask_price","bid_price","bid_amount"]
[1733701765540,0.16309121,100780.0,100770.0,0.405424]
[1733701765940,0.16309121,100780.0,100770.0,0.50465496]
[1733701766241,0.16309121,100780.0,100770.0,0.14385496]
[1733701766436,0.16320261,100780.0,100770.0,0.14385496]
[1733701766641,0.19353095,100780.0,100770.0,0.50465496]
[1733701766842,0.1631955,100780.0,100770.0,0.50665496]
[1733701767241,0.1631955,100780.0,100770.0,0.6013355]
[1733701767745,0.1631955,100780.0,100770.0,0.50665496]
[1733701768244,0.1924436,100790.0,100770.0,0.6375355]
[1733701768436,0.58805389,100810.0,100800.0,0.044611]
[1733701768437,0.17779197,100810.0,100800.0,0.044611]
[1733701768637,0.044596,100840.0,100820.0,0.044599]
[1733701768835,0.54213821,100840.0,100830.0,0.50007854]
[1733701769041,0.29764,100840.0,100830.0,0.6761584]
[1733701769243,0.044586,100860.0,100830.0,0.86728587]
[1733701769244,0.00010895,100850.0,100830.0,0.86728587]
[1733701769441,0.29774895,100850.0,100840.0,0.50007354]
[1733701769645,0.50524716,100850.0,100840.0,0.405393]
[1733701769846,0.11924901,100850.0,100840.0,1.64374443]
[1733701770147,0.13318054,100870.0,100840.0,1.43998835]
[1733701770148,0.20749821,100870.0,100840.0,1.43998835]
[1733701770333,0.3658,100890.0,100870.0,0.044577]
[1733701770334,0.405372,100890.0,100870.0,0.044577]
[1733701770534,0.25207021,100890.0,100880.0,0.21959263]
[1733701770742,0.25207021,100890.0,100880.0,0.17501663]
[1733701771047,0.33163665,100890.0,100880.0,0.09912276]
[1733701771341,0.005,100930.0,100890.0,0.044571]
[1733701771533,0.50003254,100940.0,100900.0,0.45548054]
[1733701771734,0.3608,100930.0,100910.0,0.405361]
[1733701772250,0.48491561,100930.0,100920.0,9.779e-05]
[1733701772435,0.044545,100950.0,100920.0,0.36089779]
[1733701772644,0.45548054,100970.0,100940.0,0.3608]
[1733701772943,0.044541,100960.0,100940.0,0.3608]
[1733701773145,0.3608,100990.0,100950.0,0.50203304]
[1733701773345,0.044533,100980.0,100970.0,0.3608]
[1733701773552,0.04453,100990.0,100970.0,0.59315118]
[1733701773739,0.044531,100980.0,100970.0,0.23235118]
[1733701773935,0.044531,100980.0,100970.0,0.33142484]
[1733701774241,0.41028247,100980.0,100970.0,0.79968706]
[1733701774441,0.71028247,100980.0,100970.0,0.37844476]
[1733701774643,0.044536,100970.0,100930.0,1.11587277]
[1733701774856,0.044549,100940.0,100930.0,1.26025162]
[1733701775043,0.18578204,100940.0,100930.0,1.26025162]
[1733701775238,0.18578204,100940.0,100930.0,0.34845821]
[1733701775448,0.1859074,100940.0,100930.0,0.34855694]
[1733701775653,0.1859074,100940.0,100930.0,0.70935694]
[1733701776145,0.1859074,100940.0,100930.0,0.71135694]
[1733701776545,0.4859074,100940.0,100930.0,0.05013694]
[1733701777047,0.1859074,100940.0,100930.0,0.41093694]
[1733701777345,0.1859074,100940.0,100930.0,0.36289873]
[1733701777542,0.4859074,100940.0,100930.0,0.36289873]
[1733701777740,0.044562,100910.0,100900.0,0.3608]
[1733701777945,0.18579504,100910.0,100900.0,0.7216]
[1733701778348,0.14123304,100910.0,100900.0,0.3608]
[1733701778548,0.14123304,100910.0,100890.0,0.3707]
[1733701778549,0.044567,100900.0,100890.0,0.3707]
[1733701778749,0.18580004,100900.0,100890.0,7.172e-05]
[1733701779144,1.25370004,100900.0,100890.0,7.2e-07]
[1733701779346,0.89290004,100900.0,100890.0,7.2e-07]
[1733701779547,1.25370004,100900.0,100890.0,7.2e-07]
[1733701779856,1.25370004,100900.0,100890.0,0.00900072]
[1733701779857,0.95370004,100900.0,100890.0,0.00900072]
[1733701780254,0.95378228,100900.0,100890.0,0.00900072]
[1733701780551,1.26878228,100900.0,100890.0,0.00900072]
[1733701780861,1.26878228,100900.0,100890.0,7.2e-07]
[1733701781051,1.26378228,100900.0,100890.0,7.2e-07]
[1733701781247,1.26678228,100900.0,100890.0,7.2e-07]
[1733701781955,0.044571,100890.0,100880.0,0.3707]
[1733701782145,0.044576,100880.0,100870.0,0.37080671]
[1733701782343,0.13493299,100890.0,100870.0,0.36090671]
[1733701782549,0.17950399,100890.0,100880.0,0.3608]
[1733701783249,0.18650399,100890.0,100880.0,0.3618]
[1733701783660,0.18750399,100890.0,100880.0,0.3618]
[1733701784352,0.18950399,100890.0,100880.0,0.3618]
[1733701784553,0.18950399,100890.0,100880.0,0.001]
[1733701784752,0.22950399,100890.0,100880.0,0.3618]
[1733701785351,0.22950399,100890.0,100880.0,0.001]
[1733701785858,0.89030399,100890.0,100880.0,0.001]
[1733701786246,0.094571,100890.0,100880.0,0.3618]
[1733701786455,0.054571,100890.0,100880.0,0.3618]
[1733701786649,0.054571,100890.0,100880.0,0.46092276]
[1733701786850,0.33328224,100900.0,100880.0,0.46092276]
[1733701787059,0.37784924,100900.0,100890.0,0.3608]
[1733701787762,0.52908228,100900.0,100890.0,0.3608]
[1733701787954,0.51908228,100900.0,100890.0,0.3608]
[1733701788454,0.52508228,100900.0,100890.0,0.3618]
[1733701789447,0.52108228,100900.0,100890.0,0.3608]
[1733701789649,0.52308228,100900.0,100890.0,0.3608]
[1733701790046,0.52708228,100900.0,100890.0,0.3618]
[1733701790252,0.53708228,100900.0,100890.0,0.3618]
[1733701790657,0.39584924,100900.0,100890.0,0.3618]
[1733701794762,0.53708228,100900.0,100890.0,0.001]
[1733701794957,0.57528228,100900.0,100890.0,0.001]
[1733701795163,0.57528228,100900.0,100890.0,1.501]
[1733701795357,0.57528228,100900.0,100890.0,1.8618]
[1733701795561,0.43404924,100900.0,100890.0,1.8618]
[1733701796057,0.43404924,100900.0,100890.0,1.501]
[1733701796359,0.43404924,100900.0,100890.0,1.8618]
[1733701796562,0.57528228,100900.0,100890.0,1.8618]
[1733701797259,0.87528228,100900.0,100890.0,1.8618]
[1733701797656,1.23608228,100900.0,100890.0,1.309436]
[1733701797855,0.044571,100890.0,100880.0,0.0198]
[1733701798061,0.044576,100880.0,100870.0,0.38070671]
[1733701798253,0.19580904,100880.0,100870.0,0.36090671]
[1733701798455,0.4149,100900.0,100870.0,0.36090671]
[1733701798657,29.4494104,156320.0,100870.0,0.36090671]
[1733701798871,29.4494104,156320.0,101070.0,0.3608]
[1733701798872,0.01938526,101090.0,101070.0,0.3608]
[1733701799065,0.01938526,101090.0,101080.0,0.86283304]
[1733701799066,0.23604233,101090.0,101080.0,0.86283304]
[1733701799361,1.17,101110.0,101080.0,1.22401122]
[1733701799557,1.57316961,101110.0,101100.0,0.67912432]
[1733701799755,1.17010268,101110.0,101100.0,1.71154237]
[1733701799968,0.60112961,101110.0,101100.0,1.36318807]
[1733701800273,6.268e-05,101110.0,101100.0,2.55357314]
[1733701800568,0.40306693,101110.0,101100.0,1.36318807]
[1733701801063,0.198,101120.0,101100.0,1.35752531]
[1733701801265,0.40306693,101120.0,101110.0,0.3608]
[1733701801468,9.504e-05,101120.0,101110.0,0.81283179]
[1733701801670,0.25797591,101170.0,101130.0,0.044463]
[1733701801965,0.05,101170.0,101160.0,0.3708]
[1733701802356,0.45306693,101170.0,101160.0,0.54187799]
[1733701802555,0.05007105,101170.0,101160.0,0.58185441]
[1733701802754,0.05007105,101170.0,101160.0,0.57185441]
[1733701802755,0.50658498,101170.0,101160.0,0.57185441]
[1733701802961,0.044452,101160.0,101150.0,0.17109222]
[1733701803266,0.044452,101160.0,101090.0,0.69477979]
[1733701803267,0.76386693,101160.0,101070.0,0.58087795]
[1733701803472,0.3608,101090.0,101060.0,0.23007743]
[1733701803663,0.3608,101070.0,101050.0,0.53007743]
[1733701803868,0.3608,101030.0,101000.0,0.23007743]
[1733701804063,0.7216,101010.0,101000.0,0.23007743]
[1733701804360,0.23020389,101070.0,101000.0,0.7003076]
[1733701804361,0.3608,101020.0,101000.0,0.7003076]
[1733701804569,0.3389,101020.0,101010.0,0.27489433]
[1733701804758,0.3389,101020.0,101010.0,0.53037633]
[1733701805058,0.3389,101020.0,101010.0,0.14811132]
[1733701805258,0.6997,101020.0,101010.0,0.24710651]
[1733701805658,0.7007,101020.0,101010.0,0.25510651]
[1733701806060,0.7007,101020.0,101010.0,0.25710651]
[1733701806453,0.7007,101020.0,101010.0,0.55710651]
[1733701806454,0.11450937,101020.0,101010.0,0.55710651]
[1733701806659,0.3608,101040.0,101010.0,1.14628284]
[1733701806860,1.410868,101030.0,101010.0,0.78948284]
[1733701807165,0.67665238,101020.0,101010.0,0.78948284]
[1733701807365,0.001,101020.0,101010.0,1.15028284]
[1733701807768,0.001,101020.0,101010.0,0.91990651]
[1733701807972,0.001,101030.0,101010.0,0.91990651]
[1733701808163,0.001,101030.0,101020.0,0.3608]
[1733701808569,0.001,101030.0,101020.0,0.50949132]
[1733701808867,0.2355,101040.0,101020.0,0.60848651]
[1733701809065,0.34909384,101030.0,101020.0,0.25758651]
[1733701809269,0.23446592,101040.0,101020.0,0.24768651]
[1733701809467,0.34904045,101030.0,101020.0,0.25758651]
[1733701809670,0.23446592,101040.0,101020.0,0.24768651]
[1733701809970,0.25977251,101060.0,101040.0,0.044505]
[1733701810169,0.00012646,101070.0,101050.0,0.59131166]
[1733701810375,0.00012646,101070.0,101050.0,0.60121166]
[1733701810675,0.00012646,101070.0,101050.0,1.14895283]
[1733701810865,0.00012646,101070.0,101060.0,1.5]
[1733701811263,0.00012646,101070.0,101060.0,1.64776965]
[1733701811463,0.00012646,101070.0,101060.0,1.74672076]
[1733701811464,0.36092646,101070.0,101060.0,1.74672076]
[1733701811676,2.7164966,101070.0,101050.0,0.01001049]
[1733701811872,1.11536293,101060.0,101050.0,0.01001049]
[1733701812080,1.11536293,101060.0,101050.0,0.09895111]
[1733701812371,0.3708,101060.0,101050.0,1.59891111]
[1733701812572,1.07086693,101060.0,101050.0,1.59891111]
[1733701812971,1.07086693,101060.0,101050.0,1.5989941]
[1733701814074,1.07086693,101060.0,101050.0,8.299e-05]
[1733701814262,1.07086693,101060.0,101050.0,0.108039]
[1733701814663,0.3708,101060.0,101050.0,0.108039]
[1733701814873,0.3728,101060.0,101050.0,0.099039]
[1733701815072,0.3728,101060.0,101050.0,1.58106543]
[1733701815286,0.3634932,101060.0,101050.0,1.58106543]
[1733701815472,0.3634932,101060.0,101050.0,1.73011959]
[1733701815886,0.3634932,101060.0,101050.0,1.58106543]
[1733701816173,1.10805613,101060.0,101050.0,1.85142804]
[1733701816373,2.43417017,101060.0,101050.0,1.85142804]
[1733701816576,1.26256013,101060.0,101050.0,1.85142804]
[1733701816879,1.26256013,101060.0,101050.0,0.27036261]
[1733701817180,1.26256013,101060.0,101050.0,0.36931862]
[1733701817373,2.43517017,101060.0,101050.0,0.36931862]
[1733701817572,2.43317017,101060.0,101050.0,0.36931862]
[1733701817773,2.43417017,101060.0,101050.0,1.86931862]
[1733701817966,0.5598,101060.0,101050.0,1.86931862]
[1733701818173,0.00012646,101070.0,101050.0,2.42227033]
[1733701818478,0.3608,101080.0,101060.0,0.27489717]
[1733701818670,0.3608,101080.0,101060.0,0.25520117]
[1733701818871,1.06086693,101080.0,101060.0,0.17245271]
[1733701819076,0.3608,101070.0,101060.0,0.12371601]
[1733701819275,0.3614932,101070.0,101060.0,0.10881601]
[1733701819476,1.25956013,101070.0,101060.0,0.10881601]
[1733701819779,1.30405113,101070.0,101060.0,0.10881601]
[1733701819966,1.30405113,101070.0,101060.0,0.05021601]
[1733701819967,2.47596797,101070.0,101060.0,0.05021601]
[1733701820170,0.0006932,101040.0,101030.0,0.00148437]
[1733701820374,0.7667972,101040.0,101030.0,0.00148437]
[1733701820672,2.13740724,101040.0,101030.0,0.10043059]
[1733701820892,0.044513,101020.0,101000.0,0.02020463]
[1733701821072,0.3608,101020.0,101000.0,0.2506058]
[1733701821273,0.3608,101030.0,101010.0,1.50011671]
[1733701821576,0.3608,101020.0,101010.0,1.50011671]
[1733701821965,0.3608,101020.0,101010.0,1.59909231]
[1733701822573,0.3608,101020.0,101010.0,1.60109231]
[1733701822972,0.405313,101020.0,101010.0,1.60109231]
[1733701823281,0.3608,101020.0,101010.0,1.60109231]
[1733701823881,0.53404188,101020.0,101010.0,1.74972186]
[1733701824087,0.3608,101020.0,101010.0,0.47812303]
[1733701824383,0.3608,101020.0,101010.0,0.48312303]
[1733701824884,0.3608,101020.0,101010.0,0.47812303]
[1733701825074,0.3608,101020.0,101010.0,1.98312303]
[1733701825274,0.3608,101020.0,101010.0,1.60409231]
[1733701825590,0.0099,101040.0,101020.0,0.084513]
[1733701825772,0.17483499,101050.0,101030.0,0.95210986]
[1733701826086,0.27515439,101080.0,101050.0,0.0445]
[1733701826087,0.17483499,101060.0,101050.0,0.0445]
[1733701826283,0.17483499,101070.0,101060.0,0.044495]
[1733701826477,0.17483499,101070.0,101060.0,0.4053659]
[1733701826677,0.17483499,101070.0,101060.0,0.65238419]
[1733701826883,0.0543722,101080.0,101070.0,0.044491]
[1733701826884,0.17483499,101080.0,101070.0,0.044491]
[1733701827086,0.17483499,101080.0,101070.0,0.63569217]
[1733701827383,0.2379711,101090.0,101070.0,0.63569217]
[1733701827586,0.86338881,101090.0,101070.0,0.74453839]
[1733701827775,0.26686333,101090.0,101080.0,0.3608]
[1733701827979,2.01768075,101090.0,101070.0,0.10884622]
[1733701828172,0.85948205,101080.0,101070.0,0.0099]
[1733701828404,0.59646639,101080.0,101070.0,0.09992664]
[1733701828579,1.69381083,101080.0,101070.0,0.09992664]
[1733701828888,1.68881083,101080.0,101070.0,0.09892664]
[1733701829989,1.68881083,101080.0,101060.0,1.80641434]
[1733701830190,1.06995713,101070.0,101060.0,0.415195]
[1733701830384,0.55927627,101070.0,101060.0,0.55436344]
[1733701830582,0.26492981,101070.0,101060.0,0.65329987]
[1733701831190,0.26492981,101070.0,101060.0,2.38479534]
[1733701831191,0.28783843,101070.0,101060.0,2.38479534]
[1733701831583,0.20605607,101070.0,101060.0,2.38379534]
[1733701831786,0.006,101070.0,101060.0,1.94662961]
[1733701831981,0.21405607,101070.0,101060.0,1.94662961]
[1733701832288,0.7103682,101070.0,101060.0,1.95462961]
[1733701832488,0.20931985,101070.0,101060.0,1.91013461]
[1733701832876,0.44480978,101070.0,101060.0,1.76106617]
[1733701833082,0.44480978,101070.0,101060.0,1.80556217]
[1733701833083,0.4771399,101070.0,101060.0,1.80556217]
[1733701833280,0.23848993,101070.0,101060.0,2.18467852]
[1733701833579,0.23848993,101070.0,101060.0,2.18967852]
[1733701833580,0.2074636,101070.0,101060.0,2.18967852]
[1733701833784,0.2064636,101080.0,101070.0,0.044491]
[1733701833979,0.4469174,101080.0,101070.0,0.405291]
[1733701834186,0.2064636,101080.0,101070.0,0.5541034]
[1733701834388,0.2064636,101080.0,101070.0,0.65303983]
[1733701834587,0.25595163,101080.0,101070.0,0.65303983]
[1733701834782,0.44677782,101080.0,101070.0,0.65303983]
[1733701834982,0.2064636,101080.0,101070.0,0.65603983]
[1733701835189,0.4467488,101080.0,101070.0,0.65703983]
[1733701835379,0.2064636,101080.0,101070.0,0.65703983]
[1733701835584,0.44671428,101080.0,101070.0,0.65703983]
[1733701835780,0.2064636,101080.0,101070.0,0.65703983]
[1733701835981,0.44663364,101080.0,101070.0,0.65703983]
[1733701836182,0.2064636,101080.0,101070.0,0.65703983]
[1733701836485,0.44658823,101080.0,101070.0,1.79623983]
[1733701836682,0.2064636,101080.0,101070.0,2.15903983]
[1733701836982,0.44599095,101080.0,101070.0,2.15603983]
[1733701837183,0.2064636,101080.0,101070.0,1.79723983]
[1733701837383,0.44624361,101080.0,101070.0,2.15503983]
[1733701837587,0.2064636,101080.0,101070.0,2.15403983]
[1733701837795,0.44620227,101080.0,101070.0,2.15603983]
[1733701838091,0.2064636,101080.0,101070.0,2.15603983]
[1733701838289,1.85774377,101080.0,101070.0,1.60193643]
[1733701838486,2.24248134,101080.0,101070.0,0.003]
[1733701838788,2.27192122,101080.0,101060.0,0.0297943]
[1733701838982,1.03623721,101070.0,101040.0,0.3660779]
[1733701839182,0.4353379,101060.0,101040.0,0.3660779]
[1733701839384,0.04809392,101050.0,101040.0,0.64098107]
[1733701839685,0.80366708,101070.0,101060.0,0.044496]
[1733701839892,2.17427712,101070.0,101060.0,1.544496]
[1733701840088,2.17427712,101070.0,101060.0,1.54460089]
[1733701840301,0.44219824,101070.0,101060.0,2.23474828]
[1733701840594,0.20636976,101070.0,101060.0,2.3835335]
[1733701840891,0.17885641,101070.0,101060.0,2.3835335]
[1733701841399,0.17685641,101070.0,101060.0,2.3835335]
[1733701841596,0.32314582,101070.0,101060.0,2.3855335]
[1733701842494,0.3231272,101070.0,101060.0,2.3855335]
[1733701842790,0.1757964,101070.0,101060.0,2.3885335]
[1733701842987,0.1757964,101070.0,101060.0,2.3865335]
[1733701843285,0.32411671,101070.0,101060.0,2.3925335]
[1733701843490,0.1767964,101070.0,101060.0,2.3925335]
[1733701844090,0.1767964,101070.0,101060.0,2.3865335]
[1733701844294,0.1767964,101070.0,101060.0,2.3925335]
[1733701845001,0.29434646,101120.0,101070.0,0.044491]
[1733701845195,0.67969399,101130.0,101120.0,0.044469]
[1733701845196,0.3614932,101130.0,101120.0,0.044469]
[1733701845503,1.73141004,101130.0,101120.0,0.044469]
[1733701845693,1.73141004,101130.0,101120.0,1.64341522]
[1733701845887,1.77587504,101130.0,101120.0,1.59894622]
[1733701846092,0.0006932,101120.0,101100.0,0.044477]
[1733701846289,0.0006932,101100.0,101090.0,0.044481]
[1733701846493,0.0006932,101100.0,101090.0,0.14336851]
[1733701846698,0.0371932,101100.0,101090.0,0.044481]
[1733701847010,1.3036414,101100.0,101070.0,0.044489]
[1733701847204,0.0006932,101070.0,101060.0,0.044496]
[1733701847503,0.3614932,101070.0,101060.0,0.04461289]
[1733701847703,0.50876316,101070.0,101060.0,1.87393092]
[1733701848006,0.0006932,101070.0,101060.0,2.00432975]
[1733701848204,0.14796186,101070.0,101060.0,2.00432975]
[1733701848407,0.14726866,101070.0,101060.0,2.68219024]
[1733701848611,0.14726866,101080.0,101060.0,2.68219024]
[1733701848911,0.1472321,101080.0,101070.0,0.044492]
[1733701849116,0.1472321,101090.0,101080.0,0.044487]
[1733701849297,0.1472321,101090.0,101080.0,0.405287]
[1733701849500,0.1472321,101090.0,101080.0,0.14342832]
[1733701850303,0.1492321,101090.0,101080.0,0.14342832]
[1733701850920,0.1502321,101090.0,101080.0,0.14342832]
[1733701851613,0.3638,101090.0,101080.0,0.14342832]
[1733701852113,5.9e-07,101090.0,101080.0,1.03462949]
[1733701852412,0.4451932,101110.0,101100.0,0.044479]
[1733701852610,0.4352932,101110.0,101100.0,0.044479]
[1733701853016,0.4352932,101110.0,101100.0,0.14340564]
[1733701853213,0.4352932,101110.0,101100.0,1.64340564]
[1733701854018,0.4352932,101110.0,101100.0,1.64540564]
[1733701854420,0.4372932,101110.0,101100.0,1.64340564]
[1733701854718,0.4372932,101110.0,101100.0,2.00420564]
[1733701854719,0.0758,101110.0,101100.0,2.00420564]
[1733701855214,0.002,101110.0,101100.0,2.00420564]
[1733701855911,0.41707247,101130.0,101110.0,0.04456112]
[1733701856116,0.00077247,101130.0,101120.0,0.3608]
[1733701856314,0.3806,101150.0,101120.0,0.40527]
[1733701856513,0.3608,101150.0,101140.0,0.044461]
[1733701856718,0.36132001,101160.0,101140.0,0.044461]
[1733701857024,0.04099222,101170.0,101160.0,0.044452]
[1733701857313,0.03057221,101170.0,101160.0,0.40533925]
[1733701857510,2.1e-07,101170.0,101160.0,0.85415585]
[1733701857710,2.1e-07,101170.0,101160.0,0.95301892]
[1733701858218,0.0198,101190.0,101160.0,0.95401892]
[1733701858416,0.1198796,101200.0,101190.0,0.044439]
[1733701858620,0.1000796,101200.0,101190.0,1.90532645]
[1733701859019,0.1000796,101200.0,101190.0,1.59893586]
[1733701859221,0.1445146,101200.0,101190.0,1.59893586]
[1733701859412,1.36803577,101200.0,101190.0,0.09893586]
[1733701859614,0.044443,101190.0,101160.0,0.38096439]
[1733701859815,0.07974,101190.0,101160.0,0.38096439]
[1733701860013,0.44054,101190.0,101180.0,0.09881911]
[1733701860221,0.44054,101190.0,101160.0,2.00991321]
[1733701860222,0.6961,101190.0,101160.0,1.8608]
[1733701860425,0.405248,101170.0,101140.0,0.42461328]
[1733701860721,0.65544517,101180.0,101160.0,0.45963864]
[1733701860910,0.044444,101180.0,101150.0,0.40535773]
[1733701861114,0.405244,101180.0,101160.0,0.45963864]
[1733701861311,0.405244,101180.0,101160.0,0.3608]
[1733701861816,0.405248,101170.0,101160.0,0.09884353]
[1733701862014,0.405248,101170.0,101160.0,0.04184353]
[1733701862316,0.443048,101170.0,101160.0,0.04184353]
[1733701862623,0.743051,101170.0,101150.0,0.00010273]
[1733701862819,0.443051,101170.0,101160.0,0.09884841]
[1733701863023,0.044452,101160.0,101150.0,0.00010273]
[1733701863623,0.405252,101160.0,101150.0,0.09895114]
[1733701865532,0.407252,101160.0,101150.0,0.09895114]
[1733701866326,0.407252,101160.0,101150.0,1.59895114]
[1733701867315,0.407252,101160.0,101150.0,2.00420714]
[1733701867316,0.002,101160.0,101150.0,2.00420714]
[1733701867624,0.046452,101160.0,101150.0,1.95975114]
[1733701868423,0.002,101160.0,101150.0,1.95975114]
[1733701868620,0.443049,101170.0,101150.0,1.95975114]
[1733701868822,0.0198,101180.0,101170.0,0.044448]
[1733701869127,0.35835803,101200.0,101180.0,0.044443]
[1733701869319,0.15261751,101200.0,101170.0,0.50779235]
[1733701869521,0.15261751,101200.0,101190.0,0.3608]
[1733701869522,0.10818251,101200.0,101190.0,0.3608]
[1733701869830,0.10818251,101200.0,101180.0,0.405243]
[1733701869831,0.2009636,101200.0,101180.0,0.405243]
[1733701870025,0.2009636,101200.0,101190.0,0.09883864]
[1733701870219,0.2069636,101200.0,101180.0,0.3628]
[1733701870528,0.01344509,101190.0,101180.0,0.3628]
[1733701870719,0.01344509,101190.0,101180.0,0.46162399]
[1733701870923,0.05788409,101190.0,101180.0,0.46162399]
[1733701871129,0.41868409,101190.0,101180.0,0.10082399]
[1733701871521,0.0582235,101190.0,101180.0,0.46162399]
[1733701871823,0.0582235,101190.0,101180.0,1.96062399]
[1733701872022,0.0582235,101190.0,101180.0,1.95962399]
[1733701872222,0.0137845,101190.0,101180.0,1.64426799]
[1733701872417,0.0582235,101190.0,101180.0,2.00506799]
[1733701872623,0.0642235,101190.0,101180.0,1.64426799]
[1733701872930,0.0642235,101190.0,101180.0,2.38358909]
[1733701872931,0.0197845,101190.0,101180.0,2.38358909]
[1733701873231,0.0137845,101190.0,101180.0,2.68358909]
[1733701873417,0.0177845,101190.0,101180.0,2.68358909]
[1733701873817,0.1000796,101200.0,101190.0,0.044439]
[1733701874021,0.1000796,101200.0,101190.0,0.405239]
[1733701874228,0.1000796,101200.0,101190.0,0.55256083]
[1733701874432,0.1000796,101200.0,101190.0,0.65137994]
[1733701874931,0.1060796,101200.0,101190.0,0.65237994]
[1733701875320,0.5113146,101200.0,101190.0,0.09981911]
[1733701875519,0.5113146,101200.0,101180.0,1.54670495]
[1733701875520,1.38391577,101200.0,101180.0,1.50110295]
[1733701875834,0.044444,101180.0,101160.0,0.40673433]
[1733701876132,0.044448,101170.0,101160.0,0.10030144]
[1733701876531,0.405248,101170.0,101160.0,0.10030144]
[1733701876831,0.405248,101170.0,101160.0,1.60039661]
[1733701877037,0.705248,101170.0,101160.0,1.60039661]
[1733701877633,0.405248,101170.0,101160.0,1.74944347]
[1733701878034,0.20574052,101190.0,101170.0,0.044448]
[1733701878229,0.405247,101180.0,101160.0,2.15469447]
[1733701878531,0.080147,101180.0,101160.0,1.9068285]
[1733701878735,0.080147,101180.0,101160.0,2.19864665]
[1733701878938,0.0357,101180.0,101170.0,0.044448]
[1733701879238,0.46244,101190.0,101180.0,0.044444]
[1733701879239,0.0394,101190.0,101180.0,0.044444]
[1733701879423,0.0394,101190.0,101180.0,0.405244]
[1733701879627,0.4002,101190.0,101180.0,0.1491219]
[1733701879930,0.442639,101190.0,101180.0,0.044444]
[1733701880232,0.442639,101190.0,101180.0,0.09883864]
[1733701880434,0.452639,101190.0,101180.0,0.09883864]
[1733701880733,0.093839,101190.0,101180.0,0.09983864]
[1733701881036,0.454639,101190.0,101180.0,0.09983864]
[1733701881339,0.63067952,101190.0,101180.0,0.14428164]
[1733701882024,0.63467952,101190.0,101180.0,0.14428164]
[1733701882223,0.15309395,101190.0,101180.0,0.29259323]
[1733701882427,0.006,101190.0,101180.0,2.15339323]
[1733701884242,0.15309395,101190.0,101180.0,2.15339323]
[1733701884432,0.15309395,101190.0,101180.0,1.79259323]
[1733701884629,0.15309395,101190.0,101180.0,2.15339323]
[1733701884826,0.006,101190.0,101180.0,2.15339323]
[1733701885138,0.006,101190.0,101180.0,2.45339323]
[1733701886235,0.006,101190.0,101180.0,2.15339323]
[1733701887036,0.24717355,101200.0,101190.0,0.044439]
[1733701887334,0.24717355,101200.0,101190.0,0.55412609]
[1733701887534,0.1000796,101200.0,101190.0,0.55412609]
[1733701887739,0.1000796,101200.0,101190.0,0.65295496]
[1733701887933,0.1000796,101200.0,101190.0,2.15295496]
[1733701888342,0.1020796,101200.0,101190.0,2.15295496]
[1733701888933,0.1020796,101200.0,101190.0,2.15395496]
[1733701889641,0.24717355,101200.0,101190.0,1.79315496]
[1733701889837,0.24917355,101200.0,101190.0,1.79215496]
[1733701890038,0.24917355,101200.0,101190.0,1.79315496]
[1733701890241,0.24917355,101200.0,101190.0,1.64426787]
[1733701891141,0.24917355,101200.0,101190.0,1.79268403]
[1733701891442,0.24917355,101200.0,101190.0,1.59982887]
[1733701891443,0.65440855,101200.0,101190.0,1.59982887]
[1733701891638,0.92375629,101200.0,101190.0,0.001]
[1733701891838,0.74771577,101200.0,101190.0,0.001]
[1733701892037,0.5173146,101200.0,101190.0,0.09981911]
[1733701892344,0.69413537,101200.0,101190.0,0.14425811]
[1733701892540,0.69413537,101200.0,101190.0,0.09981911]
[1733701892842,0.69413537,101200.0,101190.0,1.59981911]
[1733701893243,0.5173146,101200.0,101190.0,1.59981911]
[1733701893640,0.4728796,101200.0,101190.0,1.59981911]
[1733701893834,0.63974371,101200.0,101190.0,1.64425811]
[1733701894237,0.68417871,101200.0,101190.0,1.59981911]
[1733701894442,1.22457988,101200.0,101190.0,1.59981911]
[1733701894638,1.04771577,101200.0,101190.0,1.59981911]
[1733701895341,0.5173146,101200.0,101190.0,1.59981911]
[1733701895742,0.5073146,101200.0,101190.0,1.64425811]
[1733701895938,0.68428943,101200.0,101190.0,1.64425811]
[1733701896140,0.27905443,101200.0,101190.0,2.15268556]
[1733701896435,0.32348943,101200.0,101190.0,2.15268556]
[1733701896739,0.68428943,101200.0,101190.0,1.74744656]
[1733701896944,0.5073146,101200.0,101190.0,1.59981911]
[1733701897249,0.74771577,101200.0,101190.0,1.59981911]
[1733701897638,0.74771577,101200.0,101190.0,0.09981911]
[1733701897841,1.04771577,101200.0,101190.0,0.09981911]
[1733701898247,1.25325087,101200.0,101190.0,1.59981911]
[1733701898937,1.25325087,101200.0,101190.0,1.501]
[1733701899446,0.7128497,101200.0,101190.0,1.501]
[1733701899658,0.5073146,101200.0,101190.0,1.64425811]
[1733701899841,0.4628796,101200.0,101190.0,1.64425811]
[1733701900450,0.2792747,101200.0,101190.0,1.64425811]
[1733701900751,0.1020796,101200.0,101190.0,1.64425811]
[1733701900947,0.32730335,101200.0,101190.0,2.00505811]
[1733701901151,0.27927051,101200.0,101190.0,2.00505811]
[1733701901451,0.24972912,101200.0,101190.0,2.00505811]
[1733701901840,0.24972912,101200.0,101190.0,2.15242199]
[1733701901841,0.42692003,101200.0,101190.0,2.15242199]
[1733701902044,0.24972912,101200.0,101190.0,2.15242199]
[1733701903240,0.13255674,101200.0,101190.0,0.65242199]
[1733701903441,0.08805674,101200.0,101190.0,0.65242199]
[1733701903642,0.17719091,101210.0,101200.0,0.044435]
[1733701903842,0.17719091,101220.0,101210.0,0.04443]
[1733701904046,0.22521532,101220.0,101210.0,0.40523]
[1733701904243,0.22521532,101220.0,101210.0,0.50416888]
[1733701904444,0.17727537,101230.0,101210.0,0.6530747]
[1733701904645,0.17727537,101230.0,101220.0,0.405226]
[1733701905150,0.17714178,101230.0,101220.0,0.405226]
[1733701905347,0.17714178,101230.0,101220.0,0.50402558]
[1733701905651,0.18414178,101230.0,101220.0,0.50502558]
[1733701906060,0.00708446,101230.0,101220.0,0.65266107]
[1733701906653,4.6e-07,101230.0,101220.0,0.88306224]
[1733701907260,0.0297,101250.0,101220.0,1.27191024]
[1733701907447,0.20675732,101260.0,101250.0,0.044413]
[1733701907650,0.17705732,101270.0,101260.0,0.044409]
[1733701907959,0.17705732,101270.0,101260.0,0.55344375]
[1733701908160,0.58236828,101280.0,101260.0,0.65223357]
[1733701908371,0.22156828,101280.0,101260.0,0.60782457]
[1733701908653,0.22156828,101280.0,101270.0,0.044404]
[1733701908958,0.22156828,101280.0,101270.0,0.19190384]
[1733701909355,0.22156828,101280.0,101270.0,1.79065464]
[1733701909547,0.22156828,101280.0,101270.0,1.74625064]
[1733701909747,0.17716728,101280.0,101270.0,1.79065464]
[1733701909957,0.53796728,101280.0,101270.0,1.5987508]
[1733701910255,0.40630996,101280.0,101270.0,1.7468086]